fUST/lending_fUST_20250221
["ID","MTS","AMOUNT","RATE_DAILY","PERIOD"]
[353842042,1740088250643,-500.0,0.00014356,2]
[353842043,1740088250652,-1291.67,0.00014356,2]
[353842044,1740088250662,-503.17323342,0.00014356,2]
[353842045,1740088250672,-500.0,0.00014356,2]
[353842046,1740088250681,-500.0,0.00014356,2]
[353842047,1740088250693,-920.89,0.00014356,2]
[353842048,1740088250702,-929.85,0.00014356,2]
[353842049,1740088250712,-500.0,0.00014356,2]
[353842050,1740088250723,-1540.64,0.00014356,2]
[353842051,1740088250732,-971.44,0.00014356,2]
[353842052,1740088250742,-500.0,0.00014356,2]
[353842053,1740088250752,-1039.24,0.00014356,2]
[353842054,1740088250761,-1856.36,0.00014356,2]
[353842055,1740088250771,-500.0,0.00014356,2]
[353842056,1740088250781,-922.61,0.00014356,2]
[353842057,1740088250791,-500.0,0.00014356,2]
[353842058,1740088250800,-910.11,0.00014356,2]
[353842059,1740088250810,-500.0,0.00014356,2]
[353842060,1740088250819,-768.68,0.00014356,2]
[353842061,1740088250833,-641.09,0.00014356,2]
[353842062,1740088250843,-1568.78,0.00014356,2]
[353842063,1740088250855,-500.0,0.00014356,2]
[353842064,1740088250864,-500.0,0.00014356,2]
[353842065,1740088250873,-1114.53,0.00014356,2]
[353842066,1740088250883,-500.0,0.00014356,2]
[353842067,1740088250892,-500.0,0.00014356,2]
[353842068,1740088250901,-930.92,0.00014356,2]
[353842069,1740088250910,-500.0,0.00014356,2]
[353842070,1740088250920,-762.08,0.00014356,2]
[353842071,1740088250929,-500.0,0.00014356,2]
[353842072,1740088250938,-500.0,0.00014356,2]
[353842073,1740088250948,-500.0,0.00014356,2]
[353842074,1740088250958,-699.9,0.00014356,2]
[353842075,1740088250967,-5055.08,0.00014356,2]
[353842076,1740088250976,-4197.12,0.00014356,2]
[353842077,1740088250986,-791.38,0.00014356,2]
[353842078,1740088250995,-2312.94,0.00014356,2]
[353842079,1740088251005,-500.0,0.00014356,2]
[353842080,1740088251014,-952.09,0.00014356,2]
[353842081,1740088251023,-1345.01,0.00014356,2]
[353842082,1740088251033,-1676.92,0.00014356,2]
[353842083,1740088251042,-511.23,0.00014356,2]
[353842084,1740088251051,-1397.44,0.00014356,2]
[353842085,1740088251061,-545.61,0.00014356,2]
[353842086,1740088251070,-500.0,0.00014356,2]
[353842087,1740088251079,-51714.81,0.00014356,2]
[353842088,1740088251089,-1612.58,0.00014356,2]
[353842089,1740088251098,-3555.75,0.00014356,2]
[353842090,1740088251107,-2722.91,0.00014356,2]
[353842091,1740088251117,-500.0,0.00014356,2]
[353842092,1740088251126,-979.31,0.00014356,2]
[353842093,1740088251135,-730.11,0.00014356,2]
[353842094,1740088251144,-1498.38,0.00014356,2]
[353842095,1740088251154,-4654.46,0.00014356,2]
[353842096,1740088251163,-500.0,0.00014356,2]
[353842097,1740088251172,-9163.66,0.00014356,2]
[353842098,1740088251182,-631.58,0.00014356,2]
[353842099,1740088251192,-278.9838097,0.00014356,2]
[353842100,1740088251201,-508.27051944,0.00014356,2]
[353842101,1740088251210,-5099.76,0.00014356,2]
[353842102,1740088251220,-500.0,0.00014356,2]
[353842103,1740088251229,-500.0,0.00014356,2]
[353842104,1740088251238,-2653.04,0.00014356,2]
[353842105,1740088251247,-1859.56,0.00014356,2]
[353842106,1740088251257,-500.0,0.00014356,2]
[353842107,1740088251267,-818.57,0.00014356,2]
[353842108,1740088251277,-500.0,0.00014356,2]
[353842109,1740088251286,-805.79,0.00014356,2]
[353842110,1740088251295,-4723.09,0.00014356,2]
[353842111,1740088251305,-1354.54,0.00014356,2]
[353842112,1740088251314,-1226.53,0.00014356,2]
[353842113,1740088251323,-1201.14,0.00014356,2]
[353842114,1740088251333,-2170.78,0.00014356,2]
[353842115,1740088251342,-900.39,0.00014356,2]
[353842116,1740088251351,-500.0,0.00014356,2]
[353842117,1740088251361,-548.84,0.00014356,2]
[353842118,1740088251371,-500.0,0.00014356,2]
[353842119,1740088251380,-2914.58,0.00014356,2]
[353842120,1740088251389,-500.0,0.00014356,2]
[353842121,1740088251399,-713.87,0.00014356,2]
[353842122,1740088251408,-660.62,0.00014356,2]
[353842123,1740088251418,-628.47,0.00014356,2]
[353842124,1740088251427,-22819.86,0.00014356,2]
[353842125,1740088251437,-979.86,0.00014356,2]
[353842126,1740088251446,-500.0,0.00014356,2]
[353842127,1740088251456,-500.0,0.00014356,2]
[353842128,1740088251466,-2710.2,0.00014356,2]
[353842129,1740088251475,-1704.0,0.00014356,2]
[353842130,1740088251485,-500.0,0.00014356,2]
[353842131,1740088251494,-875.1,0.00014356,2]
[353842132,1740088251504,-500.0,0.00014356,2]
[353842133,1740088251514,-560.68,0.00014356,2]
[353842134,1740088251523,-869.8,0.00014356,2]
[353842135,1740088251533,-6728.18,0.00014356,2]
[353842136,1740088251542,-681.92,0.00014356,2]
[353842137,1740088251552,-2537.68,0.00014356,2]
[353842138,1740088251562,-1233.22,0.00014356,2]
[353842139,1740088251571,-472.62235027,0.00014356,2]
[353842140,1740088251580,-2223.25,0.00014356,2]
[353842141,1740088251590,-500.0,0.00014356,2]
[353842142,1740088251599,-500.0,0.00014356,2]
[353842143,1740088251609,-9398.14,0.00014356,2]
[353842144,1740088251618,-283.528,0.000144,2]
[353842145,1740088251628,-189.0,0.000144,2]
[353842146,1740088251639,-2500.0,0.000144,2]
[353842147,1740088251651,-1125.78062592,0.000144,2]
[353842148,1740088251661,-242.45975678,0.00014438,2]
[353842149,1740088251671,-210.36291005,0.00014438,2]
[353842150,1740088251683,-785.64,0.00014438,2]
[353842151,1740088251693,-500.0,0.00014438,2]
[353842152,1740088251703,-540.32,0.00014438,2]
[353842153,1740088251713,-500.0,0.00014438,2]
[353842154,1740088251723,-676.18,0.00014438,2]
[353842155,1740088251732,-570.6,0.00014438,2]
[353842156,1740088251742,-738.99,0.00014438,2]
[353842157,1740088251752,-540.56,0.00014438,2]
[353842158,1740088251762,-500.0,0.00014438,2]
[353842159,1740088251771,-500.0,0.00014438,2]
[353842160,1740088251780,-500.0,0.00014438,2]
[353842161,1740088251789,-500.0,0.00014438,2]
[353842162,1740088251799,-500.7,0.00014438,2]
[353842163,1740088251808,-500.0,0.00014438,2]
[353842164,1740088251817,-500.0,0.00014438,2]
[353842165,1740088251826,-2153.48,0.00014438,2]
[353842166,1740088251835,-500.0,0.00014438,2]
[353842167,1740088251844,-996.28,0.00014438,2]
[353842168,1740088251854,-982.41,0.00014438,2]
[353842169,1740088251864,-500.0,0.00014438,2]
[353842170,1740088251873,-500.0,0.00014438,2]
[353842171,1740088251883,-500.0,0.00014438,2]
[353842172,1740088251892,-506.83,0.00014438,2]
[353842173,1740088251902,-699.26,0.00014438,2]
[353842174,1740088251912,-500.0,0.00014438,2]
[353842175,1740088251921,-1291.67,0.00014438,2]
[353842176,1740088251931,-500.0,0.00014438,2]
[353842177,1740088251940,-500.0,0.00014438,2]
[353842178,1740088251949,-920.89,0.00014438,2]
[353842179,1740088251958,-929.85,0.00014438,2]
[353842180,1740088251967,-500.0,0.00014438,2]
[353842181,1740088251977,-151.0,0.00014438,2]
[353842182,1740088252062,-158.866005,0.00014438,2]
[353842183,1740088252071,-1540.64,0.00014438,2]
[353842184,1740088252081,-971.44,0.00014438,2]
[353842185,1740088252090,-500.0,0.00014438,2]
[353842186,1740088252099,-1039.24,0.00014438,2]
[353842187,1740088252108,-1856.36,0.00014438,2]
[353842188,1740088252117,-500.0,0.00014438,2]
[353842189,1740088252126,-922.61,0.00014438,2]
[353842190,1740088252135,-500.0,0.00014438,2]
[353842191,1740088252144,-910.11,0.00014438,2]
[353842192,1740088252153,-500.0,0.00014438,2]
[353842193,1740088252163,-768.68,0.00014438,2]
[353842194,1740088252173,-641.09,0.00014438,2]
[353842195,1740088252182,-1568.78,0.00014438,2]
[353842196,1740088252193,-500.0,0.00014438,2]
[353842197,1740088252202,-1114.53,0.00014438,2]
[353842198,1740088252211,-500.0,0.00014438,2]
[353842199,1740088252221,-500.0,0.00014438,2]
[353842200,1740088252230,-930.92,0.00014438,2]
[353842201,1740088252239,-500.0,0.00014438,2]
[353842202,1740088252248,-762.08,0.00014438,2]
[353842203,1740088252258,-500.0,0.00014438,2]
[353842204,1740088252267,-500.0,0.00014438,2]
[353842205,1740088252277,-151.0,0.00014438,2]
[353842206,1740088252286,-500.0,0.00014438,2]
[353842207,1740088252295,-699.9,0.00014438,2]
[353842208,1740088252305,-5055.08,0.00014438,2]
[353842209,1740088252315,-4197.12,0.00014438,2]
[353842210,1740088252325,-791.38,0.00014438,2]
[353842211,1740088252334,-2312.94,0.00014438,2]
[353842212,1740088252344,-500.0,0.00014438,2]
[353842213,1740088252354,-952.09,0.00014438,2]
[353842214,1740088252364,-1345.01,0.00014438,2]
[353842215,1740088252374,-1676.92,0.00014438,2]
[353842216,1740088252384,-511.23,0.00014438,2]
[353842217,1740088252393,-1397.44,0.00014438,2]
[353842218,1740088252403,-545.61,0.00014438,2]
[353842219,1740088252413,-151.0,0.00014438,2]
[353842220,1740088252422,-441.83645634,0.00014438,2]
[353842221,1740088252432,-51714.81,0.00014438,2]
[353842222,1740088252442,-1612.58,0.00014438,2]
[353842223,1740088252451,-3555.75,0.00014438,2]
[353842224,1740088252461,-2722.91,0.00014438,2]
[353842225,1740088252470,-500.0,0.00014438,2]
[353842226,1740088252480,-979.31,0.00014438,2]
[353842227,1740088252490,-730.11,0.00014438,2]
[353842228,1740088252500,-1498.38,0.00014438,2]
[353842229,1740088252510,-4654.46,0.00014438,2]
[353842230,1740088252520,-151.0,0.00014438,2]
[353842231,1740088252529,-500.0,0.00014438,2]
[353842232,1740088252539,-9163.66,0.00014438,2]
[353842233,1740088252549,-151.0,0.00014438,2]
[353842234,1740088252561,-631.58,0.00014438,2]
[353842235,1740088252570,-5099.76,0.00014438,2]
[353842236,1740088252580,-574.28289416,0.00014438,2]
[353842237,1740088252589,-500.0,0.00014438,2]
[353842238,1740088252599,-2653.04,0.00014438,2]
[353842239,1740088252609,-1859.56,0.00014438,2]
[353842240,1740088252619,-500.0,0.00014438,2]
[353842241,1740088252629,-818.57,0.00014438,2]
[353842242,1740088252642,-805.79,0.00014438,2]
[353842243,1740088252651,-4723.09,0.00014438,2]
[353842244,1740088252660,-1354.54,0.00014438,2]
[353842245,1740088252670,-1226.53,0.00014438,2]
[353842246,1740088252679,-1201.14,0.00014438,2]
[353842247,1740088252690,-2170.78,0.00014438,2]
[353842248,1740088252699,-900.39,0.00014438,2]
[353842249,1740088252709,-500.0,0.00014438,2]
[353842250,1740088252719,-548.84,0.00014438,2]
[353842251,1740088252728,-2914.58,0.00014438,2]
[353842252,1740088252738,-500.0,0.00014438,2]
[353842253,1740088252747,-713.87,0.00014438,2]
[353842254,1740088252756,-660.62,0.00014438,2]
[353842255,1740088252767,-628.47,0.00014438,2]
[353842256,1740088252776,-22819.86,0.00014438,2]
[353842257,1740088252786,-979.86,0.00014438,2]
[353842258,1740088252796,-500.0,0.00014438,2]
[353842259,1740088252806,-305.26121801,0.00014438,2]
[353842260,1740088252816,-2710.2,0.00014438,2]
[353842261,1740088252826,-1704.0,0.00014438,2]
[353842262,1740088252836,-187.82799862,0.00014438,2]
[353842263,1740088252846,-875.1,0.00014438,2]
[353842264,1740088252856,-500.0,0.00014438,2]
[353842265,1740088252866,-560.68,0.00014438,2]
[353842266,1740088252876,-869.8,0.00014438,2]
[353842267,1740088252886,-6728.18,0.00014438,2]
[353842268,1740088252896,-681.92,0.00014438,2]
[353842269,1740088252906,-2537.68,0.00014438,2]
[353842270,1740088252915,-1233.22,0.00014438,2]
[353842271,1740088252925,-2223.25,0.00014438,2]
[353842272,1740088252935,-500.0,0.00014438,2]
[353842273,1740088252945,-500.0,0.00014438,2]
[353842274,1740088252955,-9398.14,0.00014438,2]
[353842275,1740088252964,-800.0,0.00014438,2]
[353842276,1740088252975,-168.26106217,0.00014438,2]
[353842277,1740088252984,-70205.55338664,0.000145,5]
[353842278,1740088252994,-676636.30241719,0.000145,5]
[353842279,1740088253379,-63591.04627258,0.000145,5]
[353842280,1740088253646,-2773.51521498,0.00014009,2]
[353842281,1740088253656,-114933.18717191,0.000145,5]
[353842282,1740088253668,-25994.21866706,0.000145,5]
[353842283,1740088253680,-20474.40749551,0.000145,5]
[353842284,1740088253693,-508369.4977758,0.000145,5]
[353842285,1740088253704,-16176.16459209,0.000145,5]
[353842287,1740088668745,330.045771,9.041e-05,2]
[353842289,1740088935381,151.0,0.00018,120]
[353842339,1740089432300,-300.0,0.00011626,2]
[353842340,1740089432310,-5000.0,0.00011627,2]
[353842341,1740089432320,-5000.0,0.00011627,2]
[353842342,1740089432329,-5000.0,0.00011627,2]
[353842343,1740089432338,-5000.0,0.00011627,2]
[353842344,1740089432349,-420.0,0.00012768,2]
[353842345,1740089432358,-318.18126133,0.00012769,2]
[353842346,1740089432370,-11946.68672307,0.00012769,2]
[353842347,1740089432379,-158.8405508,0.00012879,2]
[353842348,1740089432389,-700.0,0.00013068,2]
[353842349,1740089432398,-183.65111481,0.00013598,2]
[353842350,1740089432407,-349.57677234,0.00013673,2]
[353842351,1740089432418,-260.31969653,0.00013673,2]
[353842352,1740089432428,-500.0,0.00013673,2]
[353842353,1740089432437,-500.0,0.00013673,2]
[353842354,1740089432447,-631.18133988,0.00013673,2]
[353842355,1740089432457,-152.0,0.00013688,2]
[353842356,1740089432467,-500.0,0.00013697,2]
[353842357,1740089432476,-500.0,0.00013697,2]
[353842358,1740089432486,-500.0,0.00013697,2]
[353842359,1740089432496,-500.0,0.00013697,2]
[353842360,1740089432506,-550.0,0.00013697,2]
[353842361,1740089432516,-500.0,0.00013697,2]
[353842362,1740089432525,-500.0,0.00013697,2]
[353842363,1740089432535,-500.0,0.00013697,2]
[353842364,1740089432544,-500.0,0.00013697,2]
[353842365,1740089432554,-500.0,0.00013697,2]
[353842366,1740089432563,-500.0,0.00013697,2]
[353842367,1740089432573,-500.0,0.00013697,2]
[353842368,1740089432584,-550.0,0.00013697,2]
[353842369,1740089432593,-500.0,0.00013697,2]
[353842370,1740089432602,-500.0,0.00013697,2]
[353842371,1740089432612,-500.0,0.00013697,2]
[353842372,1740089432622,-500.0,0.00013697,2]
[353842373,1740089432632,-500.0,0.00013697,2]
[353842374,1740089432642,-500.0,0.00013697,2]
[353842375,1740089432652,-500.0,0.00013697,2]
[353842376,1740089432661,-500.0,0.00013697,2]
[353842377,1740089432672,-492.14383199,0.00013697,2]
[353842378,1740089432682,-500.0,0.00013697,2]
[353842379,1740089432691,-500.0,0.00013697,2]
[353842380,1740089432701,-500.0,0.00013697,2]
[353842381,1740089432711,-500.0,0.00013697,2]
[353842382,1740089432721,-500.0,0.00013697,2]
[353842383,1740089432731,-500.0,0.00013697,2]
[353842384,1740089432740,-500.0,0.00013697,2]
[353842385,1740089432749,-500.0,0.00013697,2]
[353842386,1740089432759,-500.0,0.00013697,2]
[353842387,1740089432768,-500.0,0.00013697,2]
[353842388,1740089432778,-500.0,0.00013697,2]
[353842389,1740089432788,-500.0,0.00013697,2]
[353842390,1740089432797,-500.0,0.00013697,2]
[353842391,1740089432806,-500.0,0.00013697,2]
[353842392,1740089432815,-500.0,0.00013697,2]
[353842393,1740089432823,-500.0,0.00013697,2]
[353842394,1740089432831,-526.06402388,0.00013697,2]
[353842395,1740089432840,-500.0,0.00013697,2]
[353842396,1740089432848,-500.0,0.00013697,2]
[353842397,1740089432857,-500.0,0.00013697,2]
[353842398,1740089432867,-500.0,0.00013697,2]
[353842399,1740089432876,-500.0,0.00013697,2]
[353842400,1740089432886,-500.0,0.00013697,2]
[353842401,1740089432895,-500.0,0.00013697,2]
[353842402,1740089432905,-500.0,0.00013697,2]
[353842403,1740089432914,-500.0,0.00013697,2]
[353842404,1740089432924,-186.32948515,0.00013697,2]
[353842405,1740089432933,-500.0,0.00013697,2]
[353842406,1740089432942,-500.0,0.00013697,2]
[353842407,1740089432951,-240.5343183,0.00013698,2]
[353842408,1740089432961,-500.0,0.00013698,2]
[353842409,1740089432970,-591.09378664,0.00013698,2]
[353842410,1740089432980,-500.0,0.00013698,2]
[353842411,1740089432989,-500.0,0.00013698,2]
[353842412,1740089432999,-500.0,0.00013698,2]
[353842413,1740089433008,-500.0,0.00013698,2]
[353842414,1740089433018,-500.0,0.00013698,2]
[353842415,1740089433029,-500.0,0.00013698,2]
[353842416,1740089433039,-500.0,0.00013698,2]
[353842417,1740089433051,-500.0,0.00013698,2]
[353842418,1740089433061,-500.0,0.00013698,2]
[353842419,1740089433072,-500.0,0.00013698,2]
[353842420,1740089433082,-214.37147578,0.00013698,2]
[353842421,1740089433092,-500.0,0.00013698,2]
[353842422,1740089433103,-500.0,0.00013698,2]
[353842423,1740089433113,-500.0,0.00013698,2]
[353842424,1740089433127,-500.0,0.00013698,2]
[353842425,1740089433144,-500.0,0.00013698,2]
[353842426,1740089433154,-500.0,0.00013698,2]
[353842427,1740089433164,-500.0,0.00013698,2]
[353842428,1740089433174,-500.0,0.00013698,2]
[353842429,1740089433184,-500.0,0.00013698,2]
[353842430,1740089433193,-510.63808648,0.00013698,2]
[353842431,1740089433203,-500.0,0.00013698,2]
[353842432,1740089433213,-500.0,0.00013698,2]
[353842433,1740089433222,-500.0,0.00013698,2]
[353842434,1740089433232,-302.93036821,0.00013698,2]
[353842435,1740089433242,-516.93897456,0.00013698,2]
[353842436,1740089433251,-500.0,0.00013698,2]
[353842437,1740089433260,-500.0,0.00013698,2]
[353842438,1740089433270,-500.0,0.00013698,2]
[353842439,1740089433279,-500.0,0.00013698,2]
[353842440,1740089433290,-500.0,0.00013698,2]
[353842441,1740089433300,-500.0,0.00013698,2]
[353842442,1740089433309,-500.0,0.00013698,2]
[353842443,1740089433319,-559.71787829,0.00013698,2]
[353842444,1740089433329,-296.721,0.00013698,2]
[353842445,1740089433339,-446.19554981,0.00013698,2]
[353842446,1740089433349,-951.77,0.00013698,2]
[353842447,1740089433359,-500.0,0.00013698,2]
[353842448,1740089433368,-492.76477719,0.00013698,2]
[353842449,1740089433378,-500.0,0.00013698,2]
[353842450,1740089433388,-511.70904001,0.00013698,2]
[353842451,1740089433398,-500.0,0.00013698,2]
[353842452,1740089433407,-500.0,0.00013698,2]
[353842453,1740089433417,-500.19223468,0.00013698,2]
[353842454,1740089433427,-265.33596689,0.00013698,2]
[353842455,1740089433437,-500.0,0.00013698,2]
[353842456,1740089433446,-500.0,0.00013698,2]
[353842457,1740089433456,-500.0,0.00013698,2]
[353842458,1740089433466,-500.0,0.00013698,2]
[353842459,1740089433476,-629.3695022,0.00013698,2]
[353842460,1740089433486,-502.4289523,0.00013698,2]
[353842461,1740089433498,-500.0,0.00013698,2]
[353842462,1740089433508,-500.0,0.00013698,2]
[353842463,1740089433519,-500.0,0.00013698,2]
[353842464,1740089433529,-500.0,0.00013698,2]
[353842465,1740089433539,-500.64731202,0.00013698,2]
[353842466,1740089433548,-500.0,0.00013698,2]
[353842467,1740089433557,-500.0,0.00013698,2]
[353842468,1740089433568,-500.0,0.00013698,2]
[353842469,1740089433704,-500.0,0.00013698,2]
[353842470,1740089433715,-500.0,0.00013698,2]
[353842471,1740089433726,-500.0,0.00013698,2]
[353842472,1740089433737,-500.0,0.00013698,2]
[353842473,1740089433746,-500.0,0.00013698,2]
[353842474,1740089433756,-500.0,0.00013698,2]
[353842475,1740089433766,-500.0,0.00013698,2]
[353842476,1740089433776,-500.0,0.00013698,2]
[353842477,1740089433786,-500.0,0.00013698,2]
[353842478,1740089433795,-500.0,0.00013698,2]
[353842479,1740089433805,-500.0,0.00013698,2]
[353842480,1740089433815,-500.0,0.00013698,2]
[353842481,1740089433825,-500.0,0.00013698,2]
[353842482,1740089433834,-500.0,0.00013698,2]
[353842483,1740089433844,-500.0,0.00013698,2]
[353842484,1740089433854,-500.0,0.00013698,2]
[353842485,1740089433864,-500.0,0.00013698,2]
[353842486,1740089433874,-153.34083689,0.00013698,2]
[353842487,1740089433884,-500.0,0.00013698,2]
[353842488,1740089433894,-500.0,0.00013698,2]
[353842489,1740089433904,-500.0,0.00013698,2]
[353842490,1740089433914,-769.29,0.00013698,2]
[353842491,1740089433924,-500.0,0.00013698,2]
[353842492,1740089433934,-500.0,0.00013698,2]
[353842493,1740089433944,-500.0,0.00013698,2]
[353842494,1740089433954,-500.0,0.00013698,2]
[353842495,1740089433964,-500.59424151,0.00013698,2]
[353842496,1740089433973,-500.0,0.00013698,2]
[353842497,1740089433983,-500.0,0.00013698,2]
[353842498,1740089433992,-500.0,0.00013698,2]
[353842499,1740089434003,-500.0,0.00013698,2]
[353842500,1740089434013,-500.0,0.00013698,2]
[353842501,1740089434022,-500.0,0.00013698,2]
[353842502,1740089434033,-500.0,0.00013698,2]
[353842503,1740089434043,-500.0,0.00013698,2]
[353842504,1740089434057,-500.0,0.00013698,2]
[353842505,1740089434067,-500.0,0.00013698,2]
[353842506,1740089434076,-500.0,0.00013698,2]
[353842507,1740089434086,-500.0,0.00013698,2]
[353842508,1740089434097,-500.0,0.00013698,2]
[353842509,1740089434106,-500.0,0.00013698,2]
[353842510,1740089434117,-500.0,0.00013698,2]
[353842511,1740089434126,-500.0,0.00013698,2]
[353842512,1740089434136,-500.0,0.00013698,2]
[353842513,1740089434146,-500.0,0.00013698,2]
[353842514,1740089434155,-500.0,0.00013698,2]
[353842515,1740089434165,-500.0,0.00013698,2]
[353842516,1740089434175,-500.0,0.00013698,2]
[353842517,1740089434184,-502.2365026,0.00013698,2]
[353842518,1740089434194,-500.0,0.00013698,2]
[353842519,1740089434204,-500.0,0.00013698,2]
[353842520,1740089434213,-505.59697505,0.00013698,2]
[353842521,1740089434223,-500.0,0.00013698,2]
[353842522,1740089434233,-500.0,0.00013698,2]
[353842523,1740089434243,-500.0,0.00013698,2]
[353842524,1740089434252,-500.0,0.00013698,2]
[353842525,1740089434261,-500.64125387,0.00013698,2]
[353842526,1740089434271,-500.0,0.00013698,2]
[353842527,1740089434281,-500.0,0.00013698,2]
[353842528,1740089434290,-500.0,0.00013698,2]
[353842529,1740089434300,-500.0,0.00013698,2]
[353842530,1740089434310,-420.29993893,0.00013698,2]
[353842531,1740089434320,-500.0,0.00013698,2]
[353842532,1740089434329,-500.0,0.00013698,2]
[353842533,1740089434339,-500.0,0.00013698,2]
[353842534,1740089434349,-500.0,0.00013698,2]
[353842535,1740089434359,-500.0,0.00013698,2]
[353842536,1740089434369,-500.0,0.00013698,2]
[353842537,1740089434380,-500.0,0.00013698,2]
[353842538,1740089434390,-533.60815303,0.00013698,2]
[353842539,1740089434399,-500.0,0.00013698,2]
[353842540,1740089434409,-500.0,0.00013698,2]
[353842541,1740089434418,-500.0,0.00013698,2]
[353842542,1740089434428,-500.0,0.00013698,2]
[353842543,1740089434438,-500.0,0.00013698,2]
[353842544,1740089434448,-979.61,0.00013698,2]
[353842545,1740089434457,-500.0,0.00013698,2]
[353842546,1740089434466,-500.0,0.00013698,2]
[353842547,1740089434476,-500.0,0.00013698,2]
[353842548,1740089434486,-500.0,0.00013698,2]
[353842549,1740089434495,-500.0,0.00013698,2]
[353842550,1740089434504,-659.25,0.00013698,2]
[353842551,1740089434514,-500.0,0.00013698,2]
[353842552,1740089434523,-500.0,0.00013698,2]
[353842553,1740089434534,-500.0,0.00013698,2]
[353842554,1740089434544,-500.0,0.00013698,2]
[353842555,1740089434554,-500.0,0.00013698,2]
[353842556,1740089434563,-500.0,0.00013698,2]
[353842557,1740089434572,-500.0,0.00013698,2]
[353842558,1740089434582,-500.0,0.00013698,2]
[353842559,1740089434592,-500.0,0.00013698,2]
[353842560,1740089434602,-500.0,0.00013698,2]
[353842561,1740089434611,-500.0,0.00013698,2]
[353842562,1740089434621,-500.0,0.00013698,2]
[353842563,1740089434631,-500.0,0.00013698,2]
[353842564,1740089434641,-1255.21,0.00013698,2]
[353842565,1740089434651,-500.0,0.00013698,2]
[353842566,1740089434661,-2152.47,0.00013698,2]
[353842567,1740089434671,-500.0,0.00013698,2]
[353842568,1740089434681,-500.0,0.00013698,2]
[353842569,1740089434691,-500.0,0.00013698,2]
[353842570,1740089434701,-500.0,0.00013698,2]
[353842571,1740089434711,-500.0,0.00013698,2]
[353842572,1740089434721,-500.0,0.00013698,2]
[353842573,1740089434731,-500.0,0.00013698,2]
[353842574,1740089434741,-500.0,0.00013698,2]
[353842575,1740089434751,-500.0,0.00013698,2]
[353842576,1740089434761,-500.0,0.00013698,2]
[353842577,1740089434771,-500.0,0.00013698,2]
[353842578,1740089434780,-500.0,0.00013698,2]
[353842579,1740089434790,-500.0,0.00013698,2]
[353842580,1740089434800,-500.0,0.00013698,2]
[353842581,1740089434809,-312.88126076,0.00013698,2]
[353842582,1740089434819,-500.0,0.00013698,2]
[353842583,1740089434828,-500.0,0.00013698,2]
[353842584,1740089434837,-500.0,0.00013698,2]
[353842585,1740089434846,-500.0,0.00013698,2]
[353842586,1740089434855,-500.0,0.00013698,2]
[353842587,1740089434865,-500.0,0.00013698,2]
[353842588,1740089434875,-500.0,0.00013698,2]
[353842589,1740089434885,-500.0,0.00013698,2]
[353842590,1740089434895,-500.0,0.00013698,2]
[353842591,1740089434904,-500.0,0.00013698,2]
[353842592,1740089434913,-951.61,0.00013698,2]